fUST/lending_fUST_20250707
["ID","MTS","AMOUNT","RATE_DAILY","PERIOD"]
[370020302,1751837442170,-460.0,0.00016839,2]
[370020304,1751837442180,-460.0,0.00016839,2]
[370020305,1751837442193,-460.0,0.00016839,2]
[370020306,1751837442203,-460.0,0.00016839,2]
[370020308,1751837442212,-460.0,0.00016839,2]
[370020310,1751837442222,-460.0,0.00016839,2]
[370020312,1751837442233,-460.0,0.00016839,2]
[370020314,1751837442243,-517.26472086,0.00016839,2]
[370020316,1751837442252,-460.0,0.00016839,2]
[370020318,1751837442262,-438.02941369,0.00016839,2]
[370020319,1751837442273,-1323.23,0.00016839,2]
[370020321,1751837442283,-460.0,0.00016839,2]
[370020323,1751837442293,-460.0,0.00016839,2]
[370020324,1751837442302,-460.0,0.00016839,2]
[370020326,1751837442312,-460.0,0.00016839,2]
[370020327,1751837442321,-460.0,0.00016839,2]
[370020329,1751837442331,-460.0,0.00016839,2]
[370020332,1751837442341,-460.0,0.00016839,2]
[370020335,1751837442354,-460.0,0.00016839,2]
[370020338,1751837442363,-460.0,0.00016839,2]
[370020341,1751837442373,-460.0,0.00016839,2]
[370020343,1751837442382,-460.0,0.00016839,2]
[370020345,1751837442391,-460.0,0.00016839,2]
[370020346,1751837442402,-460.0,0.00016839,2]
[370020348,1751837442411,-460.0,0.00016839,2]
[370020350,1751837442421,-314.45881185,0.00016839,2]
[370020352,1751837442430,-564.62,0.00016839,2]
[370020354,1751837442440,-460.0,0.00016839,2]
[370020356,1751837442449,-551.04067024,0.00016839,2]
[370020358,1751837442458,-460.0,0.00016839,2]
[370020360,1751837442469,-460.0,0.00016839,2]
[370020363,1751837442479,-460.0,0.00016839,2]
[370020365,1751837442489,-460.0,0.00016839,2]
[370020367,1751837442498,-460.0,0.00016839,2]
[370020369,1751837442511,-460.0,0.00016839,2]
[370020371,1751837442520,-460.0,0.00016839,2]
[370020373,1751837442531,-460.0,0.0001684,2]
[370020375,1751837442540,-390.04914362,0.0001684,2]
[370020377,1751837442550,-460.0,0.0001684,2]
[370020379,1751837442560,-460.0,0.0001684,2]
[370020381,1751837442570,-460.0,0.0001684,2]
[370020383,1751837442579,-460.0,0.0001684,2]
[370020385,1751837442588,-460.0,0.0001684,2]
[370020386,1751837442603,-460.0,0.0001684,2]
[370020387,1751837442612,-460.0,0.0001684,2]
[370020388,1751837442622,-532.15,0.0001684,2]
[370020389,1751837442631,-460.0,0.0001684,2]
[370020390,1751837442640,-460.0,0.0001684,2]
[370020391,1751837442650,-460.0,0.0001684,2]
[370020392,1751837442660,-315.85977734,0.0001684,2]
[370020393,1751837442669,-460.0,0.0001684,2]
[370020394,1751837442678,-460.0,0.0001684,2]
[370020395,1751837442688,-460.0,0.0001684,2]
[370020396,1751837442697,-460.0,0.0001684,2]
[370020397,1751837442706,-460.0,0.0001684,2]
[370020398,1751837442716,-460.0,0.0001684,2]
[370020399,1751837442725,-338.90660576,0.0001684,2]
[370020400,1751837442735,-460.0,0.0001684,2]
[370020401,1751837442744,-460.0,0.0001684,2]
[370020402,1751837442754,-222.6890901,0.0001684,2]
[370020403,1751837442764,-460.0,0.0001684,2]
[370020404,1751837442773,-460.0,0.0001684,2]
[370020405,1751837442783,-460.0,0.0001684,2]
[370020406,1751837442792,-460.0,0.0001684,2]
[370020407,1751837442802,-460.0,0.0001684,2]
[370020408,1751837442811,-602.62577193,0.0001684,2]
[370020409,1751837442820,-460.0,0.0001684,2]
[370020410,1751837442830,-460.0,0.0001684,2]
[370020411,1751837442839,-460.0,0.0001684,2]
[370020412,1751837442853,-460.0,0.0001684,2]
[370020413,1751837442863,-460.0,0.0001684,2]
[370020414,1751837442872,-460.0,0.0001684,2]
[370020416,1751837442881,-460.0,0.0001684,2]
[370020417,1751837442891,-460.0,0.0001684,2]
[370020418,1751837442900,-460.0,0.0001684,2]
[370020419,1751837442910,-500.0,0.0001684,2]
[370020420,1751837442920,-460.0,0.0001684,2]
[370020421,1751837442929,-460.0,0.0001684,2]
[370020423,1751837442939,-460.0,0.0001684,2]
[370020424,1751837442948,-460.0,0.0001684,2]
[370020426,1751837442958,-460.0,0.0001684,2]
[370020428,1751837442968,-460.0,0.0001684,2]
[370020430,1751837442977,-460.0,0.0001684,2]
[370020432,1751837442987,-460.0,0.0001684,2]
[370020433,1751837442996,-460.0,0.0001684,2]
[370020434,1751837443006,-460.0,0.0001684,2]
[370020435,1751837443016,-460.0,0.0001684,2]
[370020436,1751837443027,-460.0,0.0001684,2]
[370020438,1751837443037,-460.0,0.0001684,2]
[370020440,1751837443046,-460.0,0.0001684,2]
[370020442,1751837443056,-460.0,0.0001684,2]
[370020443,1751837443065,-460.0,0.0001684,2]
[370020446,1751837443074,-460.0,0.0001684,2]
[370020449,1751837443084,-460.0,0.0001684,2]
[370020451,1751837443096,-460.0,0.0001684,2]
[370020452,1751837443106,-460.0,0.0001684,2]
[370020454,1751837443115,-537.51,0.0001684,2]
[370020456,1751837443125,-460.0,0.0001684,2]
[370020457,1751837443134,-460.0,0.0001684,2]
[370020460,1751837443281,-500.0,0.0001684,2]
[370020461,1751837443293,-460.0,0.0001684,2]
[370020462,1751837443303,-460.0,0.0001684,2]
[370020463,1751837443313,-460.0,0.0001684,2]
[370020464,1751837443323,-460.0,0.0001684,2]
[370020465,1751837443332,-541.24278872,0.0001684,2]
[370020467,1751837443345,-460.0,0.0001684,2]
[370020469,1751837443355,-460.0,0.0001684,2]
[370020471,1751837443367,-460.0,0.0001684,2]
[370020473,1751837443376,-463.64439017,0.0001684,2]
[370020475,1751837443386,-460.0,0.0001684,2]
[370020477,1751837443395,-460.0,0.0001684,2]
[370020479,1751837443404,-592.33894468,0.0001684,2]
[370020480,1751837443413,-460.0,0.0001684,2]
[370020482,1751837443423,-460.0,0.0001684,2]
[370020485,1751837443433,-460.0,0.0001684,2]
[370020486,1751837443442,-460.0,0.0001684,2]
[370020488,1751837443451,-460.0,0.0001684,2]
[370020490,1751837443461,-460.0,0.0001684,2]
[370020492,1751837443470,-460.0,0.0001684,2]
[370020494,1751837443480,-460.0,0.0001684,2]
[370020496,1751837443489,-460.0,0.0001684,2]
[370020498,1751837443498,-460.0,0.0001684,2]
[370020499,1751837443507,-383.18436601,0.0001684,2]
[370020502,1751837443519,-500.0,0.0001684,2]
[370020503,1751837443528,-460.0,0.0001684,2]
[370020505,1751837443537,-460.0,0.0001684,2]
[370020507,1751837443547,-460.0,0.0001684,2]
[370020509,1751837443557,-460.0,0.0001684,2]
[370020511,1751837443566,-460.0,0.0001684,2]
[370020513,1751837443576,-460.0,0.0001684,2]
[370020515,1751837443585,-460.0,0.0001684,2]
[370020517,1751837443597,-460.0,0.0001684,2]
[370020519,1751837443606,-460.0,0.0001684,2]
[370020521,1751837443616,-460.0,0.0001684,2]
[370020523,1751837443626,-460.0,0.0001684,2]
[370020526,1751837443635,-460.0,0.0001684,2]
[370020529,1751837443645,-460.0,0.0001684,2]
[370020532,1751837443654,-460.0,0.0001684,2]
[370020535,1751837443663,-500.78079707,0.0001684,2]
[370020538,1751837443673,-471.04,0.0001684,2]
[370020541,1751837443682,-460.0,0.0001684,2]
[370020544,1751837443692,-460.0,0.0001684,2]
[370020547,1751837443701,-460.0,0.0001684,2]
[370020549,1751837443710,-460.0,0.0001684,2]
[370020551,1751837443720,-460.0,0.0001684,2]
[370020553,1751837443729,-460.0,0.0001684,2]
[370020555,1751837443738,-460.0,0.0001684,2]
[370020557,1751837443748,-460.0,0.0001684,2]
[370020559,1751837443757,-1339.21,0.0001684,2]
[370020561,1751837443767,-460.0,0.0001684,2]
[370020563,1751837443776,-460.0,0.0001684,2]
[370020565,1751837443786,-460.0,0.0001684,2]
[370020567,1751837443795,-460.0,0.0001684,2]
[370020569,1751837443805,-460.0,0.0001684,2]
[370020571,1751837443815,-460.0,0.0001684,2]
[370020573,1751837443826,-500.0,0.0001684,2]
[370020575,1751837443836,-500.0,0.0001684,2]
[370020576,1751837443848,-460.0,0.0001684,2]
[370020577,1751837443858,-460.0,0.0001684,2]
[370020578,1751837443869,-460.0,0.0001684,2]
[370020579,1751837443879,-460.0,0.0001684,2]
[370020580,1751837443893,-460.0,0.0001684,2]
[370020581,1751837443904,-460.0,0.0001684,2]
[370020582,1751837443914,-505.27,0.0001684,2]
[370020583,1751837443924,-1901.18,0.0001684,2]
[370020584,1751837443935,-460.0,0.0001684,2]
[370020585,1751837443944,-460.0,0.0001684,2]
[370020586,1751837443954,-460.0,0.0001684,2]
[370020587,1751837443964,-460.0,0.0001684,2]
[370020588,1751837443974,-460.0,0.0001684,2]
[370020589,1751837443984,-476.37,0.0001684,2]
[370020590,1751837443994,-463.97965708,0.0001684,2]
[370020591,1751837444007,-460.0,0.0001684,2]
[370020593,1751837444017,-500.0,0.0001684,2]
[370020594,1751837444027,-460.0,0.0001684,2]
[370020595,1751837444036,-460.0,0.0001684,2]
[370020596,1751837444045,-460.0,0.0001684,2]
[370020597,1751837444055,-460.0,0.0001684,2]
[370020598,1751837444065,-2242.92,0.0001684,2]
[370020599,1751837444075,-511.85,0.0001684,2]
[370020600,1751837444084,-460.0,0.0001684,2]
[370020601,1751837444097,-460.0,0.0001684,2]
[370020602,1751837444106,-604.16,0.0001684,2]
[370020603,1751837444116,-480.03345279,0.0001684,2]
[370020604,1751837444126,-460.0,0.0001684,2]
[370020605,1751837444136,-210.97,0.0001684,2]
[370020606,1751837444146,-153.63,0.0001684,2]
[370020607,1751837444155,-727.43,0.0001684,2]
[370020608,1751837444165,-176.67890996,0.0001684,2]
[370020609,1751837444174,-460.0,0.0001684,2]
[370020610,1751837444186,-460.0,0.0001684,2]
[370020611,1751837444198,-746.1,0.0001684,2]
[370020612,1751837444207,-460.0,0.00016841,2]
[370020613,1751837444216,-460.0,0.00016841,2]
[370020614,1751837444226,-460.0,0.00016841,2]
[370020615,1751837444237,-460.0,0.00016841,2]
[370020616,1751837444246,-460.0,0.00016841,2]
[370020617,1751837444257,-460.0,0.00016841,2]
[370020619,1751837444267,-460.0,0.00016841,2]
[370020620,1751837444276,-399.36013052,0.00016841,2]
[370020621,1751837444285,-460.0,0.00016841,2]
[370020622,1751837444294,-592.57036219,0.00016841,2]
[370020623,1751837444303,-460.0,0.00016841,2]
[370020624,1751837444312,-460.0,0.00016841,2]
[370020625,1751837444325,-460.0,0.00016841,2]
[370020626,1751837444334,-593.09283682,0.00016841,2]
[370020627,1751837444343,-460.0,0.00016841,2]
[370020628,1751837444355,-460.0,0.00016841,2]
[370020629,1751837444364,-460.0,0.00016841,2]
[370020630,1751837444373,-460.0,0.00016841,2]
[370020632,1751837444383,-460.0,0.00016841,2]
[370020633,1751837444392,-460.0,0.00016841,2]
[370020634,1751837444401,-460.0,0.00016841,2]
[370020635,1751837444410,-460.0,0.00016841,2]
[370020636,1751837444421,-460.0,0.00016841,2]
[370020637,1751837444431,-460.0,0.00016841,2]
[370020638,1751837444440,-460.0,0.00016841,2]
[370020639,1751837444451,-578.38,0.00016841,2]
[370020640,1751837444460,-460.0,0.00016841,2]
[370020641,1751837444471,-460.0,0.00016841,2]
[370020642,1751837444482,-460.0,0.00016841,2]
[370020643,1751837444491,-460.0,0.00016841,2]
[370020644,1751837444501,-460.0,0.00016841,2]
[370020645,1751837444511,-460.0,0.00016841,2]
[370020646,1751837444520,-591.18,0.00016841,2]
[370020647,1751837444530,-460.0,0.00016841,2]
[370020648,1751837444540,-460.0,0.00016841,2]
[370020649,1751837444549,-460.0,0.00016841,2]
[370020650,1751837444558,-460.0,0.00016841,2]
[370020651,1751837444568,-507.02,0.00016841,2]
[370020652,1751837444578,-460.0,0.00016841,2]
[370020653,1751837444587,-460.0,0.00016841,2]
[370020654,1751837444598,-460.0,0.00016841,2]
[370020655,1751837444607,-460.0,0.00016841,2]
[370020656,1751837444616,-460.0,0.00016841,2]
[370020657,1751837444626,-460.0,0.00016841,2]
[370020658,1751837444635,-500.0,0.00016841,2]
[370020659,1751837444644,-500.0,0.00016841,2]
[370020660,1751837444654,-460.0,0.00016841,2]
[370020661,1751837444664,-500.0,0.00016841,2]
[370020662,1751837444673,-160.4,0.00016841,2]
[370020663,1751837444683,-500.0,0.00016842,2]
[370020664,1751837444692,-460.0,0.00016842,2]
[370020665,1751837444702,-520.12,0.00016842,2]
[370020666,1751837444712,-460.0,0.00016842,2]
[370020667,1751837444722,-541.96,0.00016842,2]
[370020668,1751837444732,-393.86487083,0.0001691,2]
[370020669,1751837444742,-151.0,0.000171,2]
[370020670,1751837444752,-241.09,0.00017111,2]
[370020671,1751837444763,-814.03,0.00017111,2]
[370020672,1751837444773,-457.48,0.00017111,2]
[370020673,1751837444784,-204.45,0.00017111,2]
[370020674,1751837444794,-1103.34,0.00017112,2]
[370020675,1751837444804,-1231.84,0.00017112,2]
[370020676,1751837444815,-460.0,0.00017112,2]
[370020678,1751837444825,-379.65316578,0.00017112,2]
[370020679,1751837444836,-460.0,0.00017112,2]
[370020680,1751837444849,-460.0,0.00017112,2]
[370020681,1751837444860,-821.9,0.00017112,2]
[370020682,1751837444871,-1125.19,0.00017112,2]
[370020683,1751837444882,-1326.05,0.00017112,2]
[370020684,1751837444892,-460.0,0.00017112,2]
[370020685,1751837444902,-460.0,0.00017112,2]
[370020686,1751837444913,-808.73,0.00017112,2]
[370020687,1751837444923,-460.0,0.00017112,2]
[370020688,1751837444934,-460.0,0.00017112,2]
[370020689,1751837444944,-460.0,0.00017112,2]
[370020690,1751837444954,-460.0,0.00017112,2]
[370020691,1751837444964,-460.0,0.00017112,2]
[370020692,1751837444975,-460.0,0.00017112,2]
[370020693,1751837444985,-741.42,0.00017112,2]
[370020694,1751837444995,-460.0,0.00017112,2]
[370020695,1751837445006,-460.0,0.00017112,2]
[370020696,1751837445015,-460.0,0.00017113,2]
[370020697,1751837445025,-414.18,0.00017113,2]
[370020698,1751837445035,-453.58,0.00017113,2]
[370020699,1751837445045,-564.65,0.00017113,2]
[370020700,1751837445054,-460.0,0.00017113,2]
[370020701,1751837445064,-460.0,0.00017113,2]
[370020702,1751837445073,-460.0,0.00017113,2]
[370020703,1751837445083,-500.0,0.00017113,2]
[370020704,1751837445092,-460.0,0.00017113,2]
[370020705,1751837445106,-460.0,0.00017113,2]
[370020706,1751837445116,-460.0,0.00017113,2]
[370020707,1751837445125,-460.0,0.00017113,2]
[370020708,1751837445134,-971.89,0.00017113,2]
[370020709,1751837445144,-460.0,0.00017113,2]
[370020710,1751837445153,-1323.23,0.00017113,2]
[370020711,1751837445163,-460.0,0.00017113,2]
[370020712,1751837445173,-460.0,0.00017113,2]
[370020713,1751837445184,-462.00347276,0.00017113,2]
[370020714,1751837445197,-460.0,0.00017113,2]
[370020715,1751837445206,-460.0,0.00017113,2]
[370020716,1751837445215,-460.0,0.00017113,2]
[370020717,1751837445227,-460.0,0.00017113,2]
[370020718,1751837445237,-460.0,0.00017113,2]
[370020719,1751837445248,-460.0,0.00017113,2]
[370020720,1751837445258,-465.89,0.00017113,2]
[370020721,1751837445268,-483.14,0.00017113,2]
[370020722,1751837445279,-460.0,0.00017114,2]
[370020723,1751837445290,-464.98179583,0.00017114,2]
[370020724,1751837445300,-200.0,0.00017114,2]
[370020725,1751837445309,-460.0,0.00017114,2]
[370020726,1751837445318,-460.0,0.00017114,2]
[370020727,1751837445328,-460.0,0.00017114,2]
[370020728,1751837445338,-595.43,0.00017114,2]
[370020729,1751837445351,-506.52519244,0.00017114,2]
[370020730,1751837445361,-460.0,0.00017114,2]
[370020731,1751837445371,-460.0,0.00017114,2]
[370020732,1751837445379,-460.0,0.00017114,2]
[370020733,1751837445389,-460.0,0.00017114,2]
[370020734,1751837445398,-460.0,0.00017114,2]
[370020735,1751837445409,-460.0,0.00017114,2]
[370020736,1751837445419,-460.0,0.00017114,2]
[370020737,1751837445428,-460.0,0.00017114,2]
[370020738,1751837445438,-460.0,0.00017114,2]
[370020739,1751837445449,-460.0,0.00017114,2]
[370020740,1751837445459,-460.0,0.00017114,2]
[370020741,1751837445468,-473.87,0.00017114,2]
[370020742,1751837445479,-460.0,0.00017114,2]
[370020743,1751837445488,-460.0,0.00017114,2]
[370020744,1751837445498,-460.0,0.00017114,2]
[370020745,1751837445508,-460.0,0.00017114,2]
[370020746,1751837445517,-460.0,0.00017114,2]
[370020747,1751837445526,-460.0,0.00017114,2]
[370020748,1751837445536,-460.0,0.00017114,2]
[370020749,1751837445545,-559.6,0.00017114,2]
[370020750,1751837445555,-571.65461872,0.00017114,2]
[370020751,1751837445564,-460.0,0.00017114,2]
[370020752,1751837445574,-460.0,0.00017114,2]
[370020753,1751837445583,-460.0,0.00017114,2]
[370020754,1751837445593,-1339.21,0.00017114,2]
[370020755,1751837445605,-460.0,0.00017114,2]
[370020756,1751837445614,-515.59,0.00017114,2]
[370020757,1751837445623,-515.09046653,0.00017114,2]
[370020758,1751837445633,-460.0,0.00017114,2]
[370020759,1751837445642,-500.0,0.00017114,2]
[370020760,1751837445652,-460.0,0.00017114,2]
[370020761,1751837445662,-460.0,0.00017114,2]
[370020762,1751837445672,-460.0,0.00017114,2]
[370020763,1751837445681,-460.0,0.00017114,2]
[370020764,1751837445691,-460.0,0.00017114,2]
[370020765,1751837445701,-1901.18,0.00017114,2]
[370020766,1751837445711,-460.0,0.00017114,2]
[370020767,1751837445721,-460.0,0.00017114,2]
[370020768,1751837445731,-476.37,0.00017114,2]
[370020769,1751837445741,-531.75,0.00017114,2]
[370020770,1751837445754,-200.0,0.00017114,2]
[370020771,1751837445765,-2242.92,0.00017114,2]
[370020772,1751837445775,-511.85,0.00017114,2]
[370020773,1751837445785,-317.84,0.00017114,2]
[370020774,1751837445795,-460.0,0.00017114,2]
[370020775,1751837445805,-604.16,0.00017114,2]
[370020776,1751837445815,-460.0,0.00017114,2]
[370020777,1751837445824,-727.43,0.00017114,2]
[370020778,1751837445834,-460.0,0.00017114,2]
[370020779,1751837445847,-460.0,0.00017114,2]
[370020780,1751837445857,-746.1,0.00017114,2]
[370020782,1751837445867,-460.0,0.00017115,2]
[370020784,1751837445877,-460.0,0.00017115,2]
[370020785,1751837445886,-523.68,0.00017115,2]
[370020786,1751837445896,-460.0,0.00017115,2]
[370020787,1751837445906,-814.03,0.00017385,2]
[370020788,1751837445916,-1103.34,0.00017386,2]
[370020789,1751837445926,-1231.84,0.00017386,2]
[370020790,1751837445936,-460.0,0.00017386,2]
[370020791,1751837445946,-355.27,0.00017386,2]
[370020792,1751837445956,-821.9,0.00017386,2]
[370020793,1751837445966,-1125.19,0.00017386,2]
[370020794,1751837445975,-1326.05,0.00017386,2]
[370020795,1751837445985,-276.0,0.00017386,2]
[370020796,1751837445996,-808.73,0.00017386,2]
[370020797,1751837446005,-460.0,0.00017386,2]
[370020798,1751837446015,-460.0,0.00017386,2]
[370020799,1751837446024,-460.0,0.00017386,2]
[370020800,1751837446033,-460.0,0.00017386,2]
[370020801,1751837446043,-741.42,0.00017386,2]
[370020802,1751837446053,-460.0,0.00017386,2]
[370020803,1751837446062,-460.0,0.00017386,2]
[370020804,1751837446073,-202.12,0.00017387,2]
[370020805,1751837446083,-182.4,0.00017387,2]
[370020806,1751837446093,-384.86,0.00017387,2]
[370020807,1751837446112,-460.0,0.00017387,2]
[370020808,1751837446122,-500.0,0.00017387,2]
[370020809,1751837446132,-460.0,0.00017387,2]
[370020810,1751837446141,-460.0,0.00017387,2]
[370020811,1751837446150,-971.89,0.00017387,2]
[370020812,1751837446160,-460.0,0.00017387,2]
[370020813,1751837446169,-1323.23,0.00017387,2]
[370020814,1751837446179,-447.98,0.00017387,2]
[370020815,1751837446193,-460.0,0.00017387,2]
[370020816,1751837446202,-460.0,0.00017387,2]
[370020817,1751837446211,-460.0,0.00017387,2]
[370020818,1751837446221,-435.13,0.00017387,2]
[370020819,1751837446230,-460.0,0.00017387,2]
[370020820,1751837446241,-460.0,0.00017388,2]
[370020821,1751837446254,-460.0,0.00017388,2]
[370020822,1751837446267,-460.0,0.00017388,2]
[370020823,1751837446277,-460.0,0.00017388,2]
[370020824,1751837446287,-460.0,0.00017388,2]
[370020825,1751837446296,-460.0,0.00017388,2]
[370020826,1751837446305,-414.93,0.00017388,2]
[370020827,1751837446314,-541.42,0.00017388,2]
[370020828,1751837446324,-460.0,0.00017388,2]
[370020829,1751837446333,-460.0,0.00017388,2]
[370020831,1751837446343,-419.87,0.00017388,2]
[370020832,1751837446353,-1339.21,0.00017388,2]
[370020833,1751837446363,-460.0,0.00017388,2]
[370020836,1751837446509,-500.0,0.00017388,2]
[370020837,1751837446520,-460.0,0.00017388,2]
[370020838,1751837446531,-460.0,0.00017388,2]
[370020839,1751837446541,-460.0,0.00017388,2]
[370020840,1751837446551,-460.0,0.00017388,2]
[370020841,1751837446560,-1901.18,0.00017388,2]
[370020842,1751837446570,-460.0,0.00017388,2]
[370020843,1751837446580,-460.0,0.00017388,2]
[370020844,1751837446590,-476.37,0.00017388,2]
[370020845,1751837446601,-2242.92,0.00017388,2]
[370020846,1751837446611,-511.85,0.00017388,2]
[370020847,1751837446621,-460.0,0.00017388,2]
[370020848,1751837446630,-604.16,0.00017388,2]
[370020849,1751837446640,-460.0,0.00017388,2]
[370020850,1751837446650,-727.43,0.00017388,2]
[370020851,1751837446660,-746.1,0.00017388,2]
[370020852,1751837446669,-500.0,0.00017388,2]
[370020853,1751837446679,-249.74738731,0.00017388,2]
[370020854,1751837446689,-500.0,0.00017388,2]
[370020855,1751837446699,-307.15,0.00017389,2]
[370020856,1751837446710,-500.0,0.00017456,2]
[370020857,1751837446720,-500.0,0.00017456,2]
[370020858,1751837446730,-3250.86807655,0.00017632,2]
[370020859,1751837446741,-814.03,0.00017659,2]
[370020860,1751837446751,-1103.34,0.0001766,2]
[370020861,1751837446762,-1231.84,0.0001766,2]
[370020862,1751837446771,-460.0,0.0001766,2]
[370020863,1751837446781,-1125.19,0.0001766,2]
[370020864,1751837446791,-821.9,0.0001766,2]
[370020865,1751837446801,-1326.05,0.0001766,2]
[370020866,1751837446811,-808.73,0.0001766,2]
[370020867,1751837446820,-198.49,0.0001766,2]
[370020868,1751837446830,-460.0,0.0001766,2]
[370020869,1751837446840,-304.39,0.0001766,2]
[370020870,1751837446852,-460.0,0.0001766,2]
[370020871,1751837446862,-741.42,0.0001766,2]
[370020872,1751837446872,-460.0,0.0001766,2]
[370020873,1751837446882,-460.0,0.0001766,2]
[370020874,1751837446891,-447.49,0.00017661,2]
[370020875,1751837446900,-500.0,0.00017661,2]
[370020876,1751837446910,-460.0,0.00017661,2]
[370020877,1751837446920,-460.0,0.00017661,2]
[370020878,1751837446929,-971.89,0.00017661,2]
[370020879,1751837446938,-460.0,0.00017661,2]
[370020880,1751837446947,-1323.23,0.00017661,2]
[370020881,1751837446957,-460.0,0.00017661,2]
[370020882,1751837446967,-460.0,0.00017661,2]
[370020883,1751837446976,-229.12,0.00017661,2]
[370020884,1751837446986,-460.0,0.00017662,2]
[370020885,1751837446995,-569.83,0.00017662,2]
[370020886,1751837447004,-460.0,0.00017662,2]
[370020887,1751837447014,-460.0,0.00017662,2]
[370020888,1751837447023,-556.67,0.00017662,2]
[370020889,1751837447032,-460.0,0.00017662,2]
[370020890,1751837447042,-460.0,0.00017662,2]
[370020891,1751837447051,-460.0,0.00017662,2]
[370020892,1751837447061,-1339.21,0.00017662,2]
[370020893,1751837447070,-460.0,0.00017662,2]
[370020894,1751837447080,-458.15,0.00017662,2]
[370020895,1751837447089,-451.24,0.00017662,2]
[370020896,1751837447101,-244.37,0.00017662,2]
[370020897,1751837447111,-460.0,0.00017662,2]
[370020898,1751837447120,-1901.18,0.00017662,2]
[370020899,1751837447130,-460.0,0.00017662,2]
[370020900,1751837447140,-460.0,0.00017662,2]
[370020901,1751837447150,-476.37,0.00017662,2]
[370020902,1751837447160,-2242.92,0.00017662,2]
[370020903,1751837447170,-511.85,0.00017662,2]
[370020904,1751837447179,-604.16,0.00017662,2]
[370020905,1751837447194,-460.0,0.00017662,2]
[370020906,1751837447204,-727.43,0.00017662,2]
[370020907,1751837447214,-746.1,0.00017662,2]
[370020908,1751837447223,-500.0,0.00017679,2]
[370020909,1751837447237,-500.0,0.0001768,2]
[370020910,1751837447247,-216.294196,0.00017731,2]
[370020911,1751837447257,-216.294196,0.00017731,2]
[370020912,1751837447270,-151.0,0.00017731,2]
[370020913,1751837447280,-151.0,0.00017731,2]
[370020914,1751837447291,-151.0,0.00017731,2]
[370020915,1751837447300,-151.0,0.00017731,2]
[370020916,1751837447310,-151.0,0.00017731,2]
[370020917,1751837447320,-151.0,0.00017731,2]
[370020918,1751837447330,-151.0,0.00017731,2]
[370020919,1751837447339,-151.0,0.00017731,2]
[370020920,1751837447352,-151.0,0.00017731,2]
[370020921,1751837447362,-151.0,0.00017731,2]
[370020922,1751837447372,-151.0,0.00017731,2]
[370020923,1751837447381,-151.0,0.00017731,2]
[370020924,1751837447391,-151.0,0.00017731,2]
[370020925,1751837447401,-307.441626,0.00017731,2]
[370020926,1751837447412,-307.441626,0.00017731,2]
[370020927,1751837447422,-151.0,0.00017731,2]